bitfinex/quotes_BTCUSD_20241205
["timestamp","ask_amount","ask_price","bid_price","bid_amount"]
[1733420527568,0.72703327,101010.0,101000.0,4.09994852]
[1733420527775,0.82703327,101010.0,101000.0,4.09994852]
[1733420527983,0.63603327,101010.0,101000.0,4.09994852]
[1733420528211,0.42703327,101010.0,101000.0,4.09994852]
[1733420528391,0.73603327,101010.0,101000.0,4.09994852]
[1733420528593,0.44503327,101010.0,101000.0,4.09994852]
[1733420528846,0.43603327,101010.0,101000.0,4.09994852]
[1733420529044,0.33603327,101010.0,101000.0,4.09994852]
[1733420529251,0.32509564,101010.0,101000.0,4.09994852]
[1733420529478,0.10954275,101010.0,101000.0,4.23194852]
[1733420530120,0.11854275,101010.0,101000.0,4.23194852]
[1733420530352,0.31654275,101010.0,101000.0,4.23194852]
[1733420530995,0.46654275,101010.0,101000.0,4.23194852]
[1733420531205,0.45754275,101010.0,101000.0,4.23194852]
[1733420531794,0.46154275,101010.0,101000.0,4.23194852]
[1733420532567,0.11354275,101010.0,101000.0,4.42996752]
[1733420532777,0.0008674,101020.0,101010.0,0.3248]
[1733420532990,0.0008676,101040.0,101030.0,0.1268]
[1733420533207,0.29848465,101040.0,101030.0,0.1268]
[1733420534034,0.15,101020.0,101010.0,0.1222]
[1733420534242,0.09967605,101020.0,101010.0,0.3202]
[1733420534448,0.0008676,101040.0,101010.0,0.36835587]
[1733420534688,0.09967605,101030.0,101010.0,0.396975]
[1733420535102,0.09967605,101030.0,101020.0,0.123]
[1733420535741,0.24967605,101030.0,101020.0,0.123]
[1733420536583,0.25067605,101030.0,101020.0,0.123]
[1733420537558,0.25967605,101030.0,101020.0,0.124]
[1733420538624,0.45763705,101030.0,101020.0,0.124]
[1733420539246,0.25967605,101030.0,101020.0,0.124]
[1733420539919,0.45763705,101030.0,101020.0,0.124]
[1733420540122,0.45763705,101030.0,101020.0,0.1245]
[1733420540748,0.45763705,101030.0,101020.0,0.0015]
[1733420543614,0.10967605,101030.0,101020.0,0.32496999]
[1733420543813,0.01,101030.0,101020.0,0.32398]
[1733420544222,0.0008676,101040.0,101030.0,0.322461]
[1733420544500,0.10054365,101040.0,101030.0,0.322461]
[1733420544931,0.0008676,101040.0,101030.0,0.49183287]
[1733420545142,0.0008676,101040.0,101030.0,0.68975209]
[1733420545359,0.0017346,101050.0,101040.0,0.2284]
[1733420545582,0.0017346,101050.0,101040.0,0.426341]
[1733420547350,0.04085294,101090.0,101060.0,0.197891]
[1733420547564,0.09967605,101080.0,101060.0,0.395781]
[1733420547780,0.09967605,101080.0,101060.0,0.593672]
[1733420548164,0.09967605,101080.0,101060.0,0.395781]
[1733420548392,0.09967605,101080.0,101050.0,0.49518387]
[1733420548393,0.09967605,101080.0,101050.0,0.523722]
[1733420548586,0.24967605,101080.0,101060.0,0.19988932]
[1733420548753,0.24967605,101080.0,101060.0,0.20188932]
[1733420549155,0.24967605,101080.0,101060.0,0.19988932]
[1733420549576,0.15,101070.0,101060.0,0.001]
[1733420549881,0.15,101070.0,101050.0,0.329821]
[1733420549882,0.15,101060.0,101050.0,0.329821]
[1733420550087,0.24967605,101060.0,101050.0,0.329821]
[1733420550709,0.153,101080.0,101050.0,0.329821]
[1733420550956,0.25267605,101080.0,101060.0,0.19888634]
[1733420551113,0.25267605,101080.0,101060.0,0.39677934]
[1733420551322,0.25467605,101080.0,101060.0,0.39677934]
[1733420551537,0.25167605,101080.0,101060.0,0.39677934]
[1733420552115,0.25167605,101080.0,101070.0,0.0796]
[1733420552332,0.002,101080.0,101070.0,0.49684315]
[1733420552604,0.002,101080.0,101070.0,0.59585387]
[1733420552737,0.002,101080.0,101070.0,0.426482]
[1733420553151,0.09967605,101080.0,101070.0,0.1286]
[1733420553376,0.29753905,101080.0,101070.0,0.1286]
[1733420553563,0.30153905,101080.0,101070.0,0.1286]
[1733420553803,0.44753905,101080.0,101050.0,0.1232]
[1733420554015,0.44756805,101070.0,101050.0,0.1232]
[1733420554234,0.64546205,101070.0,101050.0,0.1232]
[1733420554413,0.24967605,101070.0,101060.0,0.001]
[1733420555003,0.44755805,101070.0,101060.0,0.001]
[1733420555557,0.64545305,101070.0,101050.0,0.1232]
[1733420555782,0.64545305,101070.0,101050.0,0.1242]
[1733420556025,0.44755805,101070.0,101050.0,0.1242]
[1733420556230,0.09967605,101070.0,101060.0,0.197902]
[1733420556454,0.003,101070.0,101060.0,0.395786]
[1733420556675,0.003,101070.0,101060.0,0.79415211]
[1733420557310,0.379865,101100.0,101070.0,0.395735]
[1733420557516,0.09967605,101090.0,101070.0,0.395734]
[1733420557727,0.09967605,101090.0,101070.0,0.197864]
[1733420558138,0.24967605,101090.0,101070.0,0.395746]
[1733420558561,0.24967605,101090.0,101070.0,0.396746]
[1733420558980,0.24967605,101090.0,101070.0,0.395746]
[1733420559385,0.64637505,101090.0,101060.0,0.427084]
[1733420559593,0.44851905,101090.0,101070.0,0.001]
[1733420559800,0.65337305,101090.0,101070.0,0.001]
[1733420560040,0.85123005,101090.0,101070.0,0.001]
[1733420560241,0.45551905,101090.0,101070.0,0.001]
[1733420560362,0.65337005,101090.0,101070.0,0.001]
[1733420560555,0.45551905,101090.0,101070.0,0.001]
[1733420560766,0.65237505,101090.0,101070.0,0.001]
[1733420561298,0.25667605,101090.0,101070.0,0.001]
[1733420561524,0.25667605,101090.0,101080.0,0.0777]
[1733420561745,0.157,101090.0,101080.0,0.275563]
[1733420561975,0.157,101090.0,101080.0,0.321263]
[1733420562617,0.159,101090.0,101080.0,0.321263]
[1733420562759,0.152,101090.0,101080.0,0.321263]
[1733420563375,0.161,101090.0,101080.0,0.322263]
[1733420564035,0.159,101090.0,101080.0,0.322263]
[1733420564509,0.163,101090.0,101080.0,0.322263]
[1733420565419,0.159,101090.0,101080.0,0.322263]
[1733420565860,0.151,101090.0,101080.0,0.321263]
[1733420566354,0.158,101090.0,101080.0,0.322263]
[1733420567782,0.45551905,101090.0,101080.0,0.1244]
[1733420567994,0.45451905,101090.0,101080.0,0.001]
[1733420568434,0.45451905,101090.0,101080.0,0.002]
[1733420568919,0.84322805,101090.0,101070.0,0.0818]
[1733420569131,0.24967605,101080.0,101070.0,0.0818]
[1733420569349,0.44753905,101080.0,101070.0,0.0818]
[1733420569559,0.24967605,101080.0,101070.0,0.0818]
[1733420569975,0.44753905,101080.0,101060.0,0.1305]
[1733420570188,0.64541305,101080.0,101060.0,0.1305]
[1733420570601,0.347882,101070.0,101060.0,0.1305]
[1733420570815,0.44755805,101070.0,101050.0,0.0812324]
[1733420571037,0.24967605,101060.0,101050.0,0.0812324]
[1733420571717,0.24967605,101060.0,101050.0,0.2791534]
[1733420571930,0.09967605,101060.0,101050.0,0.2791534]
[1733420572330,0.25067605,101060.0,101050.0,0.2791534]
[1733420572772,0.25867605,101060.0,101050.0,0.2801534]
[1733420572973,0.25867605,101060.0,101050.0,0.0822324]
[1733420573145,0.45657805,101060.0,101050.0,0.0822324]
[1733420573361,0.45657805,101060.0,101050.0,0.0027324]
[1733420573571,0.25867605,101060.0,101050.0,0.0027324]
[1733420573770,0.45657805,101060.0,101050.0,0.0027324]
[1733420575018,0.009,101060.0,101050.0,0.35104859]
[1733420575248,0.009,101060.0,101050.0,0.62743213]
[1733420575474,0.009,101060.0,101050.0,0.67273213]
[1733420575679,0.009,101060.0,101050.0,0.50370546]
[1733420575915,0.009,101060.0,101050.0,0.4242534]
[1733420576566,0.001,101060.0,101050.0,0.4232534]
[1733420576999,0.0008662,101090.0,101070.0,0.197871]
[1733420577197,0.09967605,101080.0,101070.0,0.395745]
[1733420577407,0.09967605,101080.0,101070.0,0.478145]
[1733420577615,0.09967605,101080.0,101070.0,0.280271]
[1733420577817,0.09967605,101080.0,101070.0,0.0824]
[1733420578031,0.09967605,101080.0,101070.0,0.280282]
[1733420578244,0.0018662,101090.0,101080.0,0.197863]
[1733420578469,0.10154225,101090.0,101080.0,0.197863]
[1733420578659,0.10054225,101090.0,101070.0,0.88986617]
[1733420578875,0.10054225,101090.0,101080.0,0.197863]
[1733420579358,0.10454225,101090.0,101080.0,0.197863]
[1733420579575,0.25454225,101090.0,101080.0,0.197863]
[1733420579781,0.25054225,101090.0,101080.0,0.197863]
[1733420580000,0.25454225,101090.0,101080.0,0.197863]
[1733420580199,0.0048662,101090.0,101080.0,0.26994505]
[1733420580418,0.0048662,101090.0,101080.0,0.36688967]
[1733420580634,0.0048662,101090.0,101080.0,0.46688967]
[1733420580843,0.0048662,101090.0,101080.0,0.51588967]
[1733420581051,0.0048662,101090.0,101080.0,0.51688967]
[1733420581272,0.0048662,101090.0,101080.0,0.347863]
[1733420581686,0.0048662,101090.0,101080.0,0.430763]
[1733420581894,0.1548662,101090.0,101080.0,0.430763]
[1733420582097,0.1548662,101090.0,101080.0,0.59978967]
[1733420582944,0.1548662,101090.0,101080.0,0.69946572]
[1733420583162,0.1548662,101090.0,101080.0,0.79738494]
[1733420583619,0.1548662,101090.0,101080.0,0.79638494]
[1733420583825,0.1508662,101090.0,101080.0,0.79638494]
[1733420584036,0.1508662,101090.0,101080.0,0.79938494]
[1733420584241,0.1508662,101090.0,101080.0,0.70146572]
[1733420584449,0.1508662,101090.0,101080.0,0.69846572]
[1733420584907,0.1518662,101090.0,101080.0,0.70346572]
[1733420585545,0.1508662,101090.0,101080.0,0.72367456]
[1733420586183,0.1508662,101090.0,101080.0,0.89670123]
[1733420586399,0.1508662,101090.0,101080.0,0.82559378]
[1733420586635,0.1508662,101090.0,101080.0,0.83560868]
[1733420586848,0.1508662,101090.0,101080.0,0.25771117]
[1733420587061,0.1508662,101090.0,101080.0,0.32535043]
[1733420587306,0.25054225,101090.0,101080.0,0.009]
[1733420587526,0.44838525,101090.0,101080.0,0.009]
[1733420588167,0.44738525,101090.0,101080.0,0.004]
[1733420588575,0.24954225,101090.0,101080.0,0.004]
[1733420588780,0.24954225,101090.0,101080.0,0.197863]
[1733420588979,0.008,101090.0,101080.0,0.54758967]
[1733420589187,0.008,101090.0,101080.0,0.378563]
[1733420589393,0.008,101090.0,101080.0,0.278563]
[1733420589606,0.10867605,101090.0,101080.0,0.001]
[1733420589818,0.29851905,101090.0,101070.0,0.197872]
[1733420590036,0.10367605,101090.0,101070.0,0.395743]
[1733420590244,0.25367605,101090.0,101080.0,0.197863]
[1733420590481,0.154,101090.0,101080.0,0.200863]
[1733420590680,0.162,101090.0,101080.0,0.201863]
[1733420590885,0.26167605,101090.0,101080.0,0.001]
[1733420591293,0.45951905,101090.0,101080.0,0.001]
[1733420592217,0.15,101080.0,101070.0,0.198871]
[1733420593062,0.15,101080.0,101070.0,0.197871]
[1733420593270,0.24967605,101080.0,101060.0,0.522579]
[1733420593477,0.15,101060.0,101050.0,0.1996494]
[1733420593904,0.15,101060.0,101050.0,0.59737607]
[1733420594365,0.15,101060.0,101050.0,0.4283494]
[1733420594572,0.151,101080.0,101070.0,0.197882]
[1733420594778,0.24967605,101080.0,101070.0,0.197882]
[1733420595440,0.1508661,101090.0,101070.0,0.197882]
[1733420595662,0.25054215,101090.0,101070.0,0.395752]
[1733420595828,0.44838515,101090.0,101070.0,0.395751]
[1733420596033,0.008,101080.0,101070.0,0.198869]
[1733420596247,0.008,101080.0,101070.0,0.197869]
[1733420596454,0.008,101080.0,101070.0,0.198869]
[1733420596895,0.45638515,101090.0,101070.0,0.594619]
[1733420597100,0.008,101080.0,101070.0,0.397737]
[1733420597997,0.25867605,101080.0,101070.0,0.002]
[1733420598224,0.25867605,101080.0,101070.0,0.199882]
[1733420598440,0.25867605,101080.0,101070.0,0.002]
[1733420598646,0.25867605,101080.0,101070.0,0.199882]
[1733420599512,0.25867605,101080.0,101070.0,0.20012316]
[1733420603146,0.25867605,101080.0,101070.0,0.00224116]
[1733420603368,0.45653905,101080.0,101070.0,0.00224116]
[1733420603583,0.25867605,101080.0,101070.0,0.20012316]
[1733420604026,0.009,101080.0,101070.0,0.20012316]
[1733420604262,0.009,101080.0,101070.0,0.27922316]
[1733420606458,0.009,101080.0,101070.0,0.28095516]
[1733420606685,0.009866,101080.0,101070.0,0.28095516]
[1733420607175,0.009866,101080.0,101070.0,0.69475788]
[1733420607395,0.008866,101080.0,101070.0,0.8926771]
[1733420607607,0.000866,101080.0,101070.0,0.8916771]
[1733420608492,0.1508661,101090.0,101080.0,0.64458967]
[1733420608726,0.1508661,101090.0,101080.0,0.74426572]
[1733420608944,0.1508661,101090.0,101080.0,0.64458967]
[1733420609158,0.1508661,101090.0,101080.0,0.74250889]
[1733420609827,0.1508661,101090.0,101080.0,0.74350889]
[1733420610236,0.0008661,101090.0,101080.0,1.06101161]
[1733420611392,0.18204,101100.0,101090.0,0.64456967]
[1733420611638,0.18204,101100.0,101090.0,0.74424572]
[1733420611852,0.18204,101100.0,101090.0,0.84216494]
[1733420612280,0.18204,101100.0,101090.0,0.68442172]
[1733420612736,0.33204,101100.0,101090.0,0.68442172]
[1733420612959,0.33204,101100.0,101090.0,0.68942172]
[1733420613608,0.33304,101100.0,101090.0,0.69442172]
[1733420614545,0.33304,101100.0,101090.0,0.74162172]
[1733420614984,0.33004529,101100.0,101090.0,0.74162172]
[1733420615171,0.18004529,101100.0,101090.0,0.74162172]
[1733420617859,0.14048129,101100.0,101090.0,0.74162172]
[1733420618067,0.08113529,101100.0,101090.0,0.74162172]
[1733420618276,0.08113529,101100.0,101090.0,0.76152222]
[1733420618488,2.9e-07,101100.0,101090.0,0.76152222]
[1733420619115,0.0008676,101120.0,101110.0,0.12435678]
[1733420619342,0.0008676,101120.0,101110.0,0.6438499]
[1733420619551,0.0008676,101120.0,101110.0,0.64286128]
[1733420620413,0.0008676,101120.0,101110.0,0.64786128]
[1733420620650,0.0008676,101120.0,101110.0,0.202804]
[1733420620890,0.50607087,101120.0,101110.0,0.005]
[1733420621103,0.53152765,101120.0,101110.0,0.005]
[1733420621323,0.57652765,101120.0,101110.0,0.005]
[1733420622481,0.57652765,101120.0,101110.0,0.009]
[1733420622928,0.57652765,101120.0,101110.0,0.005]
[1733420623133,0.58252765,101120.0,101110.0,0.006]
[1733420623346,0.68252765,101120.0,101110.0,0.006]
[1733420623782,0.377743,101090.0,101080.0,0.0017318]
[1733420624006,0.62741905,101090.0,101080.0,0.0017318]
[1733420625346,0.53041905,101090.0,101080.0,0.0017318]
[1733420625993,0.63041905,101090.0,101080.0,0.0017318]
[1733420626423,0.62741905,101090.0,101080.0,0.0017318]
[1733420626880,0.63641905,101090.0,101080.0,0.0027318]
[1733420627594,0.53641905,101090.0,101080.0,0.0027318]
[1733420628282,0.63641905,101090.0,101080.0,0.0027318]
[1733420628526,0.89041905,101090.0,101080.0,0.0027318]
[1733420628740,0.88141905,101090.0,101080.0,0.0017318]
[1733420628957,0.89041905,101090.0,101080.0,0.0027318]
[1733420629169,0.89941905,101090.0,101080.0,0.0037318]
[1733420629386,0.88141905,101090.0,101080.0,0.0027318]
[1733420629827,0.89041905,101090.0,101080.0,0.0037318]
[1733420630318,0.88141905,101090.0,101080.0,0.0027318]
[1733420630746,0.89041905,101090.0,101080.0,0.0037318]
[1733420631185,0.68141905,101090.0,101080.0,0.0027318]
[1733420631426,0.69941905,101090.0,101080.0,0.0047318]
[1733420631865,0.99941905,101090.0,101080.0,0.0047318]
[1733420632094,0.98141905,101090.0,101080.0,0.0027318]
[1733420632315,0.97241905,101090.0,101080.0,0.0017318]
[1733420633223,0.57241905,101090.0,101080.0,0.0017318]
[1733420634354,0.58141905,101090.0,101080.0,0.0027318]
[1733420634570,0.59041905,101090.0,101080.0,0.0037318]
[1733420634799,0.20867605,101090.0,101080.0,0.0027318]
[1733420635070,0.10867605,101090.0,101080.0,0.20158401]
[1733420635283,0.027,101090.0,101080.0,0.2025948]
[1733420635503,0.027,101090.0,101080.0,0.2005948]
[1733420635504,0.009,101090.0,101080.0,0.2005948]
[1733420635738,0.25556722,101100.0,101080.0,0.3974458]
[1733420635976,0.009,101090.0,101080.0,0.2005828]
[1733420636420,0.31941927,101090.0,101080.0,0.2005828]
[1733420637148,0.32841927,101090.0,101080.0,0.2015828]
[1733420637598,0.31641927,101090.0,101080.0,0.2005828]
[1733420637824,0.30741927,101090.0,101080.0,0.1995828]
[1733420638550,0.31041927,101090.0,101080.0,0.1995828]
[1733420638781,0.153,101090.0,101080.0,0.2719224]
[1733420639022,0.163,101090.0,101080.0,0.2729224]
[1733420639933,0.163,101090.0,101080.0,0.2005828]
[1733420640401,0.16,101090.0,101080.0,0.2005828]
[1733420640616,0.30774322,101100.0,101080.0,0.1995828]
[1733420640829,0.40741927,101100.0,101090.0,0.197843]
[1733420641046,0.60524227,101100.0,101080.0,0.3974308]
[1733420641260,0.80307427,101100.0,101080.0,0.3974308]
[1733420641708,0.80307427,101100.0,101080.0,0.5952838]
[1733420641955,0.30741927,101090.0,101080.0,0.1995948]
[1733420642171,0.24967605,101090.0,101080.0,0.2521486]
[1733420642425,0.15,101090.0,101080.0,0.2521486]
[1733420642654,0.15,101090.0,101080.0,0.1995948]
[1733420643747,0.30741927,101090.0,101080.0,0.1995948]
[1733420643973,0.54751905,101090.0,101080.0,0.0017318]
[1733420644468,0.40741927,101090.0,101080.0,0.1995948]
[1733420644677,0.34967605,101090.0,101080.0,0.0017318]
[1733420644905,0.55051905,101090.0,101080.0,0.0017318]
[1733420645151,0.61965474,101090.0,101080.0,0.0011093]
[1733420645346,0.69955474,101090.0,101080.0,0.0011093]
[1733420645558,0.79955474,101090.0,101080.0,0.0011093]
[1733420645997,0.347863,101080.0,101070.0,0.00197316]
[1733420646258,0.44753905,101080.0,101070.0,0.00197316]
[1733420646898,0.84753905,101080.0,101070.0,0.00197316]
[1733420647108,1.01667474,101080.0,101070.0,0.00197316]
[1733420647612,0.44753905,101080.0,101070.0,0.00197316]
[1733420647851,0.45653905,101080.0,101070.0,0.00297316]
[1733420648057,0.62567474,101080.0,101070.0,0.00397316]
[1733420648287,0.46553905,101080.0,101070.0,0.00397316]
[1733420649869,0.11767605,101080.0,101070.0,0.00397316]
[1733420650096,0.21767605,101080.0,101070.0,0.00397316]
[1733420650314,0.41553905,101080.0,101070.0,0.00397316]
[1733420650522,0.21767605,101080.0,101070.0,0.20185516]
[1733420650730,0.17541927,101080.0,101070.0,0.20185516]
[1733420650954,0.09967605,101080.0,101070.0,0.19985516]
[1733420651166,0.10967605,101080.0,101070.0,0.29264838]
[1733420651377,0.16741927,101080.0,101070.0,0.20085516]
[1733420651849,0.01,101080.0,101070.0,0.20085516]
[1733420652066,0.06774322,101080.0,101070.0,0.20085516]
[1733420652522,0.45753905,101080.0,101070.0,0.00297316]
[1733420653030,0.62667474,101080.0,101070.0,0.00297316]
[1733420653242,0.62667474,101080.0,101050.0,0.0017324]
[1733420653243,0.347902,101060.0,101050.0,0.0017324]
[1733420653486,0.44757805,101060.0,101050.0,0.0017324]
[1733420653707,0.71671374,101060.0,101050.0,0.0017324]
[1733420653927,1.01671374,101060.0,101050.0,0.0017324]
[1733420655291,1.02171374,101060.0,101050.0,0.0017324]
[1733420655547,1.02171374,101060.0,101050.0,0.0027324]
[1733420655548,1.03071374,101060.0,101050.0,0.0027324]
[1733420655763,1.03071374,101060.0,101050.0,0.0017324]
[1733420656661,1.02571374,101060.0,101050.0,0.0017324]
[1733420657118,0.64371374,101060.0,101050.0,0.0027324]
[1733420657342,0.74371374,101060.0,101050.0,4e-07]
[1733420657562,0.76881374,101060.0,101050.0,4e-07]
[1733420659429,0.51709669,101030.0,101020.0,0.002233]
[1733420659659,0.61677274,101030.0,101020.0,0.002233]
[1733420660812,0.61977274,101030.0,101020.0,0.002233]
[1733420661241,0.62577274,101030.0,101020.0,0.002233]
[1733420663499,0.66538374,101030.0,101020.0,0.002233]
[1733420664406,0.68470935,101030.0,101020.0,0.002233]
[1733420664870,0.49624805,101030.0,101020.0,0.002233]
[1733420665106,0.20867605,101030.0,101020.0,0.002233]
[1733420665373,0.30663705,101030.0,101020.0,0.002233]
[1733420666053,0.30363705,101030.0,101020.0,0.002233]
[1733420666292,0.31063705,101030.0,101020.0,0.003233]
[1733420666515,0.46063705,101030.0,101020.0,0.003233]
[1733420666748,0.45363705,101030.0,101020.0,0.002233]
[1733420666992,0.44763705,101030.0,101020.0,0.002233]
[1733420667228,0.46563705,101030.0,101020.0,0.003233]
[1733420667438,0.45663705,101030.0,101020.0,0.003233]
[1733420667876,0.46563705,101030.0,101020.0,0.003233]
[1733420668538,0.36767605,101030.0,101020.0,0.20220286]
[1733420668783,0.018,101030.0,101020.0,0.26897139]
[1733420669032,0.018,101030.0,101020.0,0.31607139]
[1733420669511,0.009,101030.0,101020.0,0.31507139]
[1733420669750,0.009,101030.0,101020.0,0.323313]
[1733420669751,0.011,101030.0,101020.0,0.323313]
[1733420669970,0.011,101030.0,101020.0,0.125333]
[1733420670176,0.002,101030.0,101020.0,0.323313]
[1733420670399,0.55365022,101040.0,101020.0,0.521283]
[1733420670645,0.002,101030.0,101020.0,0.323303]
[1733420670873,0.152,101030.0,101020.0,0.323303]
[1733420671316,0.15,101030.0,101020.0,0.323303]
[1733420671735,0.24967605,101030.0,101020.0,0.125333]
[1733420671961,0.15,101030.0,101020.0,0.323313]
[1733420672380,0.20974322,101040.0,101030.0,0.197961]
[1733420672586,0.152,101040.0,101030.0,0.197961]
[1733420673724,0.15,101040.0,101030.0,0.25982096]
[1733420673944,0.15,101040.0,101030.0,0.197961]
[1733420674159,0.158,101040.0,101030.0,0.197961]
[1733420674372,0.008,101040.0,101030.0,0.197961]
[1733420675291,0.002,101040.0,101030.0,0.197961]
[1733420675502,0.30774322,101050.0,101030.0,0.197961]
[1733420675712,0.40741927,101050.0,101030.0,0.593872]
[1733420676136,0.30741927,101050.0,101040.0,0.197941]
[1733420677278,0.31341927,101050.0,101040.0,0.197941]
[1733420677493,0.31541927,101050.0,101040.0,0.197941]
[1733420677928,0.41541927,101050.0,101040.0,0.197941]
[1733420678124,0.61334327,101050.0,101030.0,0.395901]
[1733420678372,0.61334327,101050.0,101030.0,0.395902]
[1733420678651,0.81214117,101050.0,101030.0,0.395901]
[1733420678891,0.41628617,101050.0,101030.0,0.593851]
[1733420679121,0.61220817,101050.0,101030.0,0.59385]
[1733420679568,0.81014017,101050.0,101030.0,0.19795]
[1733420679790,0.15,101030.0,101020.0,0.323299]
[1733420680015,0.15,101030.0,101020.0,0.48823811]
[1733420680908,0.24967605,101040.0,101030.0,0.197961]
[1733420681623,0.15,101040.0,101030.0,0.197961]
[1733420681866,0.1508669,101050.0,101040.0,0.197941]
[1733420682333,0.0008669,101050.0,101040.0,0.280041]
[1733420682765,0.0008669,101050.0,101040.0,0.325241]
[1733420682980,0.0028669,101050.0,101040.0,0.325241]
[1733420683189,0.0028669,101050.0,101040.0,0.1273]
[1733420683403,0.0028669,101050.0,101040.0,0.12828948]
[1733420683623,0.0028669,101050.0,101040.0,0.32623048]
[1733420683624,0.1508669,101050.0,101040.0,0.32623048]
[1733420683817,0.1508669,101050.0,101040.0,0.1273]
[1733420683818,0.25654295,101050.0,101040.0,0.1273]
[1733420684254,0.25654295,101050.0,101040.0,0.325241]
[1733420684474,0.25854295,101050.0,101040.0,0.1273]
[1733420684698,0.25054295,101050.0,101040.0,0.325241]
[1733420685624,0.25654295,101050.0,101040.0,0.325241]
[1733420685847,0.25954295,101050.0,101040.0,0.325241]
[1733420687455,0.25954295,101050.0,101040.0,0.1273]
[1733420687884,0.45746395,101050.0,101040.0,0.1273]
[1733420688649,0.51520717,101050.0,101030.0,0.593851]
[1733420689062,0.24967605,101040.0,101020.0,0.527273]
[1733420689357,0.60537827,101040.0,101020.0,0.131333]
[1733420689557,1.00128927,101040.0,101020.0,0.131333]
[1733420689882,0.60537227,101040.0,101020.0,0.329302]
[1733420690054,0.60537227,101040.0,101010.0,0.395974]
[1733420690233,0.30774322,101030.0,101010.0,0.197999]
[1733420690431,0.80336927,101030.0,101000.0,4.49595952]
[1733420690868,1.00134527,101030.0,101000.0,4.69396852]
[1733420691121,0.80336727,101030.0,101010.0,0.197989]
[1733420691391,0.60539127,101030.0,101010.0,0.397977]
[1733420692082,0.30774322,101040.0,101020.0,0.00098979]
[1733420692305,0.40741927,101040.0,101020.0,0.19895479]
[1733420692543,0.60536827,101040.0,101020.0,0.00098979]
[1733420692767,0.44764705,101030.0,101010.0,0.20297469]
[1733420693002,0.64561605,101030.0,101010.0,0.397977]
[1733420693222,0.70435927,101030.0,101010.0,0.397977]
[1733420693443,0.80435927,101030.0,101010.0,0.395977]
[1733420693662,0.80435927,101030.0,101010.0,0.197985]
[1733420693937,0.80335927,101030.0,101010.0,0.197985]
[1733420694395,1.00333227,101030.0,101000.0,4.62216352]
[1733420694839,1.00333227,101030.0,101010.0,0.197997]
[1733420696865,0.15,101010.0,101000.0,4.62216352]
[1733420697086,0.15,101010.0,101000.0,4.09994852]
[1733420697308,0.15,101010.0,101000.0,4.29796752]
[1733420697556,0.15,101010.0,101000.0,4.48917723]
[1733420697997,0.15,101020.0,101000.0,4.48917723]
[1733420698216,0.15,101020.0,101010.0,0.39698083]
[1733420698448,0.15,101020.0,101010.0,0.395991]
[1733420700043,0.152,101020.0,101010.0,0.395991]
[1733420701624,0.152,101020.0,101010.0,0.50880071]
[1733420702051,0.152,101020.0,101010.0,0.395991]
[1733420703138,0.50740927,101020.0,101000.0,4.09994852]
[1733420703379,0.44767605,101010.0,101000.0,4.09994852]
[1733420704470,0.24967605,101010.0,101000.0,4.29996752]
[1733420704717,0.15,101020.0,101010.0,0.197996]
[1733420705158,0.15,101020.0,101010.0,0.395992]
[1733420705637,0.30774322,101030.0,101010.0,0.395992]
[1733420705879,0.60538727,101030.0,101010.0,0.395992]
[1733420706094,0.80335627,101030.0,101010.0,0.593984]
[1733420706301,0.24967605,101030.0,101020.0,0.19896978]
[1733420706677,0.05861012,101050.0,101020.0,0.31077571]
[1733420706840,0.45622017,101050.0,101030.0,0.00098953]
[1733420707042,0.45622017,101050.0,101010.0,0.24589]
[1733420707043,0.19797,101030.0,101010.0,0.24589]
[1733420707405,0.65336327,101030.0,101010.0,0.245899]
[1733420707620,0.65936127,101030.0,101010.0,0.443899]
[1733420707833,0.152,101020.0,101010.0,0.245899]
[1733420708071,0.152,101020.0,101010.0,0.197999]
[1733420708491,0.15,101020.0,101010.0,0.197999]
[1733420708693,0.65936127,101030.0,101010.0,0.197999]
[1733420708694,0.256,101030.0,101010.0,0.31080871]
[1733420708892,0.256,101030.0,101010.0,0.50880071]
[1733420709013,0.256,101030.0,101020.0,0.19798]
[1733420709276,0.25,101030.0,101020.0,0.19798]
[1733420710398,0.256,101030.0,101020.0,0.19798]
[1733420710812,0.258,101030.0,101020.0,0.19798]
[1733420711261,0.26,101030.0,101020.0,0.19798]
[1733420711705,0.455961,101030.0,101010.0,0.593973]
[1733420711925,0.81135427,101030.0,101010.0,0.395981]
[1733420712072,0.35767605,101030.0,101020.0,0.19896978]
[1733420712296,0.35767605,101030.0,101020.0,0.19798]
[1733420712507,0.55563705,101030.0,101010.0,0.593972]
[1733420712717,0.54763705,101030.0,101020.0,0.19798]
[1733420713011,0.54850425,101030.0,101020.0,0.19798]
[1733420713235,0.35054325,101030.0,101020.0,0.19798]
[1733420713448,0.35254325,101030.0,101020.0,0.19798]
[1733420714373,0.35254325,101030.0,101020.0,0.1966042]
[1733420715640,0.55050425,101030.0,101010.0,0.51052411]
[1733420715854,0.54765605,101020.0,101010.0,0.0017344]
[1733420716068,0.60539927,101020.0,101010.0,0.0017344]
[1733420716279,0.54765605,101020.0,101010.0,0.0017344]
[1733420717636,0.54765605,101020.0,101010.0,0.0037344]
[1733420717834,0.55365605,101020.0,101010.0,0.0037344]
[1733420718727,0.55365605,101020.0,101010.0,0.0017344]
[1733420718939,0.41341927,101020.0,101010.0,0.0017344]
[1733420719171,0.61339927,101020.0,101010.0,0.0017344]
[1733420719675,0.55565605,101020.0,101010.0,0.0017344]
[1733420719878,0.45565605,101020.0,101010.0,0.0017344]
[1733420720099,0.51339927,101020.0,101010.0,0.0017344]
[1733420720736,0.45565605,101020.0,101010.0,0.0017344]
[1733420720986,0.51339927,101020.0,101010.0,0.00272431]
[1733420721186,0.51339927,101020.0,101010.0,0.0017344]
[1733420722308,0.61339927,101020.0,101010.0,0.0017344]
[1733420722509,0.51339927,101020.0,101010.0,0.0017344]
[1733420722944,0.35767605,101020.0,101010.0,0.1997344]
[1733420723193,0.008,101020.0,101010.0,0.1997344]
[1733420724597,0.158,101020.0,101010.0,0.1997344]
[1733420724764,0.008,101020.0,101010.0,0.1997344]
[1733420725379,0.008,101020.0,101010.0,0.31254411]
[1733420725605,0.0008672,101030.0,101020.0,0.24023678]
[1733420725871,0.0008672,101030.0,101020.0,0.51157316]
[1733420726095,0.0008672,101030.0,101020.0,0.43504649]
[1733420726533,0.0008672,101030.0,101020.0,0.58222254]